fUSD/lending_fUSD_20240814
["ID","MTS","AMOUNT","RATE_DAILY","PERIOD"]
[334884136,1723626661397,-500.0,0.00015068,2]
[334884138,1723626661407,-275.92251437,0.00015068,2]
[334884140,1723626661421,-1974.32,0.00015068,2]
[334884142,1723626661432,-500.0,0.00015068,2]
[334884144,1723626661442,-500.0,0.00015068,2]
[334884145,1723626661452,-500.0,0.00015068,2]
[334884147,1723626661462,-559.34038232,0.00015068,2]
[334884149,1723626661472,-226.61,0.00015068,2]
[334884151,1723626661481,-500.0,0.00015068,2]
[334884153,1723626661492,-500.0,0.00015068,2]
[334884155,1723626661502,-500.0,0.00015068,2]
[334884157,1723626661511,-591.86,0.00015068,2]
[334884159,1723626661522,-666.36,0.00015068,2]
[334884161,1723626661531,-500.0,0.00015068,2]
[334884163,1723626661541,-500.0,0.00015068,2]
[334884165,1723626661551,-500.0,0.00015068,2]
[334884167,1723626661560,-500.0,0.00015068,2]
[334884169,1723626661570,-626.96772721,0.00015068,2]
[334884171,1723626661579,-216.48,0.00015068,2]
[334884173,1723626661588,-500.0,0.00015068,2]
[334884174,1723626661598,-500.0,0.00015068,2]
[334884176,1723626661608,-554.42,0.00015068,2]
[334884178,1723626661618,-500.0,0.00015068,2]
[334884180,1723626661627,-500.0,0.00015068,2]
[334884182,1723626661637,-500.0,0.00015068,2]
[334884184,1723626661646,-500.0,0.00015068,2]
[334884186,1723626661657,-500.0,0.00015068,2]
[334884187,1723626661667,-500.0,0.00015068,2]
[334884189,1723626661676,-500.0,0.00015068,2]
[334884191,1723626661689,-500.0,0.00015068,2]
[334884193,1723626661698,-500.0,0.00015068,2]
[334884195,1723626661708,-500.0,0.00015068,2]
[334884197,1723626661718,-500.0,0.00015068,2]
[334884199,1723626661728,-500.0,0.00015068,2]
[334884201,1723626661738,-500.0,0.00015068,2]
[334884203,1723626661747,-500.0,0.00015068,2]
[334884205,1723626661756,-573.31,0.00015068,2]
[334884206,1723626661766,-500.0,0.00015068,2]
[334884208,1723626661776,-500.0,0.00015068,2]
[334884210,1723626661785,-500.0,0.00015068,2]
[334884212,1723626661794,-500.0,0.00015068,2]
[334884214,1723626661804,-500.0,0.00015068,2]
[334884216,1723626661814,-500.0,0.00015068,2]
[334884218,1723626661823,-783.31,0.00015068,2]
[334884220,1723626661833,-500.0,0.00015068,2]
[334884222,1723626661843,-500.0,0.00015068,2]
[334884224,1723626661853,-500.0,0.00015068,2]
[334884226,1723626661863,-500.0,0.00015068,2]
[334884228,1723626661873,-500.0,0.00015068,2]
[334884230,1723626661882,-520.19,0.00015068,2]
[334884232,1723626661892,-500.0,0.00015068,2]
[334884234,1723626661902,-500.0,0.00015068,2]
[334884236,1723626661912,-500.0,0.00015068,2]
[334884238,1723626661921,-500.0,0.00015068,2]
[334884240,1723626661933,-500.0,0.00015068,2]
[334884242,1723626661943,-500.0,0.00015068,2]
[334884244,1723626661953,-500.0,0.00015068,2]
[334884246,1723626661963,-500.0,0.00015068,2]
[334884248,1723626661973,-922.73,0.00015068,2]
[334884250,1723626661982,-500.0,0.00015068,2]
[334884252,1723626661992,-500.0,0.00015068,2]
[334884253,1723626662002,-500.0,0.00015068,2]
[334884255,1723626662012,-500.0,0.00015068,2]
[334884274,1723626662192,-500.0,0.00015068,2]
[334884276,1723626662204,-830.91,0.00015068,2]
[334884278,1723626662215,-500.0,0.00015068,2]
[334884280,1723626662225,-500.0,0.00015068,2]
[334884283,1723626662235,-500.0,0.00015068,2]
[334884284,1723626662246,-500.0,0.00015068,2]
[334884286,1723626662255,-690.05,0.00015068,2]
[334884288,1723626662266,-500.0,0.00015068,2]
[334884290,1723626662275,-500.0,0.00015068,2]
[334884292,1723626662285,-500.0,0.00015068,2]
[334884294,1723626662295,-818.44,0.00015068,2]
[334884296,1723626662305,-500.0,0.00015068,2]
[334884297,1723626662315,-500.0,0.00015068,2]
[334884299,1723626662325,-389.96086808,0.00015068,2]
[334884301,1723626662334,-500.0,0.00015068,2]
[334884303,1723626662343,-500.0,0.00015068,2]
[334884305,1723626662353,-500.0,0.00015068,2]
[334884307,1723626662363,-500.0,0.00015068,2]
[334884309,1723626662372,-500.0,0.00015068,2]
[334884311,1723626662382,-542.84,0.00015068,2]
[334884313,1723626662391,-294.9946108,0.00015068,2]
[334884315,1723626662402,-500.0,0.00015068,2]
[334884317,1723626662411,-500.0,0.00015068,2]
[334884319,1723626662425,-500.0,0.00015068,2]
[334884321,1723626662435,-500.0,0.00015068,2]
[334884323,1723626662445,-609.17,0.00015068,2]
[334884325,1723626662455,-500.0,0.00015068,2]
[334884327,1723626662466,-579.6,0.00015068,2]
[334884329,1723626662475,-500.0,0.00015068,2]
[334884331,1723626662484,-500.0,0.00015068,2]
[334884333,1723626662495,-653.02,0.00015068,2]
[334884335,1723626662505,-151.0,0.00015068,2]
[334884337,1723626662515,-500.0,0.00015068,2]
[334884339,1723626662525,-500.0,0.00015068,2]
[334884341,1723626662536,-500.0,0.00015068,2]
[334884342,1723626662545,-2177.45,0.00015068,2]
[334884344,1723626662555,-1063.82,0.00015068,2]
[334884346,1723626662565,-500.0,0.00015068,2]
[334884348,1723626662575,-500.0,0.00015068,2]
[334884350,1723626662585,-845.57,0.00015068,2]
[334884352,1723626662596,-1527.58,0.00015068,2]
[334884354,1723626662606,-676.31,0.00015068,2]
[334884356,1723626662617,-500.0,0.00015068,2]
[334884358,1723626662627,-1715.7,0.00015068,2]
[334884360,1723626662636,-500.0,0.00015068,2]
[334884362,1723626662646,-754.95,0.00015068,2]
[334884364,1723626662656,-500.0,0.00015068,2]
[334884366,1723626662666,-972.03,0.00015068,2]
[334884368,1723626662676,-500.0,0.00015068,2]
[334884370,1723626662687,-524.53,0.00015068,2]
[334884372,1723626662697,-500.0,0.00015068,2]
[334884374,1723626662707,-500.0,0.00015068,2]
[334884376,1723626662716,-500.0,0.00015068,2]
[334884378,1723626662727,-770.2,0.00015068,2]
[334884380,1723626662738,-500.0,0.00015068,2]
[334884382,1723626662748,-2373.49,0.00015068,2]
[334884384,1723626662758,-608.38,0.00015068,2]
[334884385,1723626662767,-562.69,0.00015068,2]
[334884386,1723626662777,-500.0,0.00015068,2]
[334884387,1723626662787,-644.93,0.00015068,2]
[334884388,1723626662797,-6691.92,0.00015068,2]
[334884389,1723626662807,-2731.88,0.00015068,2]
[334884390,1723626662817,-2589.64,0.00015068,2]
[334884391,1723626662828,-500.0,0.00015068,2]
[334884392,1723626662838,-500.0,0.00015068,2]
[334884393,1723626662848,-552.38,0.00015068,2]
[334884394,1723626662858,-2632.4,0.00015068,2]
[334884396,1723626662868,-1402.43,0.00015068,2]
[334884398,1723626662877,-2123.25,0.00015068,2]
[334884400,1723626662887,-670.79,0.00015068,2]
[334884402,1723626662897,-759.51,0.00015068,2]
[334884404,1723626662907,-985.93,0.00015068,2]
[334884406,1723626662916,-500.0,0.00015068,2]
[334884408,1723626662926,-552.30670042,0.00015068,2]
[334884410,1723626662937,-500.0,0.00015068,2]
[334884412,1723626662947,-3137.69,0.00015068,2]
[334884414,1723626662956,-172.30561257,0.00015068,2]
[334884416,1723626662966,-500.0,0.00015068,2]
[334884418,1723626662976,-1305.48,0.00015068,2]
[334884420,1723626662986,-500.0,0.00015068,2]
[334884422,1723626662995,-644.37,0.00015068,2]
[334884424,1723626663005,-1305.6,0.00015068,2]
[334884426,1723626663015,-500.0,0.00015068,2]
[334884428,1723626663025,-500.0,0.00015068,2]
[334884430,1723626663035,-536.79,0.00015068,2]
[334884432,1723626663044,-983.66,0.00015068,2]
[334884434,1723626663054,-500.0,0.00015068,2]
[334884436,1723626663064,-500.0,0.00015068,2]
[334884438,1723626663074,-677.53,0.00015068,2]
[334884440,1723626663084,-2121.13,0.00015068,2]
[334884442,1723626663093,-638.37,0.00015068,2]
[334884444,1723626663103,-759.39,0.00015068,2]
[334884446,1723626663113,-500.0,0.00015068,2]
[334884448,1723626663123,-500.0,0.00015068,2]
[334884450,1723626663133,-500.0,0.00015068,2]
[334884452,1723626663143,-151.0,0.00015068,2]
[334884454,1723626663153,-500.0,0.00015068,2]
[334884456,1723626663162,-500.0,0.00015068,2]
[334884458,1723626663172,-500.0,0.00015068,2]
[334884460,1723626663183,-794.59,0.00015068,2]
[334884462,1723626663193,-500.0,0.00015068,2]
[334884464,1723626663203,-1352.79,0.00015068,2]
[334884466,1723626663213,-849.35,0.00015068,2]
[334884468,1723626663223,-500.0,0.00015068,2]
[334884470,1723626663233,-655.62,0.00015068,2]
[334884472,1723626663242,-500.0,0.00015068,2]
[334884475,1723626663252,-500.0,0.00015068,2]
[334884477,1723626663262,-1159.21,0.00015068,2]
[334884478,1723626663271,-500.0,0.00015068,2]
[334884480,1723626663281,-500.0,0.00015068,2]
[334884483,1723626663291,-733.33,0.00015068,2]
[334884484,1723626663301,-500.0,0.00015068,2]
[334884486,1723626663311,-500.0,0.00015068,2]
[334884488,1723626663321,-500.0,0.00015068,2]
[334884491,1723626663331,-562.63,0.00015068,2]
[334884492,1723626663341,-1460.87,0.00015068,2]
[334884495,1723626663352,-996.55,0.00015068,2]
[334884497,1723626663362,-500.0,0.00015068,2]
[334884499,1723626663372,-500.0,0.00015068,2]
[334884501,1723626663382,-1258.81,0.00015068,2]
[334884503,1723626663392,-381.1399008,0.00015068,2]
[334884505,1723626663402,-500.0,0.00015068,2]
[334884507,1723626663413,-500.0,0.00015068,2]
[334884509,1723626663426,-725.26,0.00015068,2]
[334884510,1723626663436,-682.77,0.00015068,2]
[334884512,1723626663446,-604.11,0.00015068,2]
[334884514,1723626663456,-796.91,0.00015068,2]
[334884516,1723626663467,-678.33,0.00015068,2]
[334884518,1723626663476,-500.0,0.00015068,2]
[334884520,1723626663485,-500.0,0.00015068,2]
[334884522,1723626663496,-500.0,0.00015068,2]
[334884524,1723626663506,-500.0,0.00015068,2]
[334884526,1723626663515,-1036.99,0.00015068,2]
[334884528,1723626663525,-684.51,0.00015068,2]
[334884530,1723626663535,-2400.86,0.00015068,2]
[334884532,1723626663545,-1157.66,0.00015068,2]
[334884534,1723626663555,-2787.1,0.00015068,2]
[334884536,1723626663565,-500.0,0.00015068,2]
[334884538,1723626663575,-1126.69,0.00015068,2]
[334884540,1723626663584,-500.0,0.00015068,2]
[334884542,1723626663594,-500.0,0.00015068,2]
[334884543,1723626663604,-1607.6,0.00015068,2]
[334884545,1723626663613,-500.0,0.00015068,2]
[334884547,1723626663623,-500.0,0.00015068,2]
[334884549,1723626663633,-500.0,0.00015068,2]
[334884551,1723626663643,-544.62,0.00015068,2]
[334884553,1723626663654,-780.32,0.00015068,2]
[334884555,1723626663665,-500.0,0.00015068,2]
[334884557,1723626663674,-507.47,0.00015068,2]
[334884559,1723626663685,-3758.29,0.00015068,2]
[334884561,1723626663694,-1854.98,0.00015068,2]
[334884563,1723626663704,-500.0,0.00015068,2]
[334884565,1723626663715,-500.0,0.00015068,2]
[334884567,1723626663725,-281.39859282,0.00015068,2]
[334884569,1723626663735,-642.83,0.00015068,2]
[334884571,1723626663744,-556.33,0.00015068,2]
[334884573,1723626663754,-500.0,0.00015068,2]
[334884575,1723626663764,-500.0,0.00015068,2]
[334884577,1723626663774,-659.96,0.00015068,2]
[334884579,1723626663784,-635.37,0.00015068,2]
[334884581,1723626663794,-810.55,0.00015068,2]
[334884583,1723626663804,-500.0,0.00015068,2]
[334884585,1723626663814,-500.0,0.00015068,2]
[334884587,1723626663824,-500.0,0.00015068,2]
[334884589,1723626663833,-500.0,0.00015068,2]
[334884591,1723626663843,-500.0,0.00015068,2]
[334884593,1723626663853,-893.45,0.00015068,2]
[334884595,1723626663862,-734.11,0.00015068,2]
[334884597,1723626663872,-1023.98,0.00015068,2]
[334884599,1723626663882,-2346.66,0.00015068,2]
[334884601,1723626663892,-500.0,0.00015068,2]
[334884603,1723626663902,-500.0,0.00015068,2]
[334884605,1723626663913,-7848.21,0.00015068,2]
[334884607,1723626663923,-687.93,0.00015068,2]
[334884609,1723626663934,-743.2,0.00015068,2]
[334884611,1723626663944,-500.0,0.00015068,2]
[334884613,1723626663954,-500.0,0.00015068,2]
[334884615,1723626663963,-975.29,0.00015068,2]
[334884617,1723626663973,-500.0,0.00015068,2]
[334884619,1723626663983,-1297.0,0.000151,2]
[334884621,1723626663993,-150.0,0.00015244,4]
[334884622,1723626664003,-300.0,0.00015303,2]
[334884625,1723626664012,-151.0,0.00015337,2]
[334884627,1723626664023,-17634.9211026,0.00015337,2]
[334884629,1723626664032,-636755.28570187,0.00015342,2]
[334884630,1723626664042,-300.25471429,0.00015342,2]
[334884632,1723626664051,-500.0,0.00015342,2]
[334884634,1723626664060,-154.515367,0.00015342,2]
[334884636,1723626664070,-500.0,0.00015342,2]
[334884638,1723626664079,-467.84707693,0.00015342,2]
[334884640,1723626664088,-601.4,0.00015342,2]
[334884642,1723626664098,-271.84578374,0.00015342,2]
[334884644,1723626664107,-500.0,0.00015342,2]
[334884646,1723626664117,-849.17,0.00015342,2]
[334884648,1723626664126,-500.0,0.00015342,2]
[334884650,1723626664135,-500.0,0.00015342,2]
[334884651,1723626664145,-500.0,0.00015342,2]
[334884653,1723626664155,-500.0,0.00015342,2]
[334884655,1723626664165,-500.0,0.00015342,2]
[334884657,1723626664175,-500.0,0.00015342,2]
[334884659,1723626664186,-500.0,0.00015342,2]
[334884661,1723626664196,-500.0,0.00015342,2]
[334884663,1723626664205,-500.0,0.00015342,2]
[334884665,1723626664215,-500.0,0.00015342,2]
[334884667,1723626664224,-500.0,0.00015342,2]
[334884669,1723626664234,-500.0,0.00015342,2]
[334884671,1723626664243,-500.0,0.00015342,2]
[334884673,1723626664253,-500.0,0.00015342,2]
[334884675,1723626664262,-500.0,0.00015342,2]
[334884677,1723626664271,-500.0,0.00015342,2]
[334884679,1723626664281,-500.0,0.00015342,2]
[334884681,1723626664290,-556.52283175,0.00015342,2]
[334884683,1723626664300,-500.0,0.00015342,2]
[334884685,1723626664310,-535.77308719,0.00015342,2]
[334884687,1723626664320,-512.44,0.00015342,2]
[334884689,1723626664329,-500.0,0.00015342,2]
[334884691,1723626664339,-500.0,0.00015342,2]
[334884693,1723626664348,-500.0,0.00015342,2]
[334884695,1723626664357,-500.0,0.00015342,2]
[334884697,1723626664367,-500.0,0.00015342,2]
[334884699,1723626664376,-678.29,0.00015342,2]
[334884701,1723626664386,-511.38,0.00015342,2]
[334884703,1723626664395,-500.0,0.00015342,2]
[334884705,1723626664405,-500.0,0.00015342,2]
[334884707,1723626664417,-500.0,0.00015342,2]
[334884709,1723626664426,-500.0,0.00015342,2]
[334884711,1723626664438,-500.0,0.00015342,2]
[334884713,1723626664448,-500.0,0.00015342,2]
[334884715,1723626664459,-500.0,0.00015342,2]
[334884717,1723626664468,-500.0,0.00015342,2]
[334884719,1723626664477,-500.0,0.00015342,2]
[334884721,1723626664488,-500.0,0.00015342,2]
[334884723,1723626664497,-500.0,0.00015342,2]
[334884725,1723626664507,-500.0,0.00015342,2]
[334884727,1723626664517,-500.0,0.00015342,2]
[334884729,1723626664526,-1974.32,0.00015342,2]
[334884731,1723626664536,-500.0,0.00015342,2]
[334884733,1723626664545,-500.0,0.00015342,2]
[334884734,1723626664555,-500.0,0.00015342,2]
[334884736,1723626664565,-226.61,0.00015342,2]
[334884738,1723626664575,-500.0,0.00015342,2]
[334884740,1723626664584,-500.0,0.00015342,2]
[334884742,1723626664594,-500.0,0.00015342,2]
[334884744,1723626664604,-591.86,0.00015342,2]
[334884746,1723626664613,-666.36,0.00015342,2]
[334884748,1723626664623,-500.0,0.00015342,2]
[334884750,1723626664632,-500.0,0.00015342,2]
[334884752,1723626664641,-215.43,0.00015342,2]
[334884759,1723626664701,-500.0,0.00015342,2]
[334884761,1723626664711,-500.0,0.00015342,2]
[334884763,1723626664721,-500.0,0.00015342,2]
[334884765,1723626664730,-554.42,0.00015342,2]
[334884766,1723626664739,-500.0,0.00015342,2]
[334884768,1723626664748,-500.0,0.00015342,2]
[334884770,1723626664758,-500.0,0.00015342,2]
[334884772,1723626664767,-414.68914527,0.00015342,2]
[334884774,1723626664777,-636.12190263,0.00015342,2]
[334884776,1723626664786,-500.0,0.00015342,2]
[334884778,1723626664796,-500.0,0.00015342,2]
[334884780,1723626664805,-500.0,0.00015342,2]
[334884782,1723626664814,-500.0,0.00015342,2]
[334884784,1723626664824,-500.0,0.00015342,2]
[334884786,1723626664833,-500.0,0.00015342,2]
[334884787,1723626664843,-500.0,0.00015342,2]
[334884789,1723626664853,-500.0,0.00015342,2]
[334884792,1723626664863,-500.0,0.00015342,2]
[334884793,1723626664872,-573.31,0.00015342,2]
[334884795,1723626664882,-500.0,0.00015342,2]
[334884797,1723626664891,-500.0,0.00015342,2]
[334884799,1723626664900,-500.0,0.00015342,2]
[334884801,1723626664909,-500.0,0.00015342,2]
[334884803,1723626664918,-500.0,0.00015342,2]
[334884804,1723626664927,-500.0,0.00015342,2]
[334884807,1723626664938,-783.31,0.00015342,2]
[334884809,1723626664947,-500.0,0.00015342,2]
[334884810,1723626664956,-500.0,0.00015342,2]
[334884812,1723626664965,-500.0,0.00015342,2]
[334884814,1723626664974,-500.0,0.00015342,2]
[334884816,1723626664983,-500.0,0.00015342,2]
[334884818,1723626664992,-520.19,0.00015342,2]
[334884820,1723626665002,-500.0,0.00015342,2]
[334884822,1723626665011,-500.0,0.00015342,2]
[334884824,1723626665020,-500.0,0.00015342,2]
[334884826,1723626665029,-500.0,0.00015342,2]
[334884828,1723626665038,-500.0,0.00015342,2]
[334884830,1723626665047,-500.0,0.00015342,2]
[334884832,1723626665056,-500.0,0.00015342,2]
[334884834,1723626665065,-500.0,0.00015342,2]
[334884836,1723626665074,-922.73,0.00015342,2]
[334884838,1723626665084,-500.0,0.00015342,2]
[334884839,1723626665093,-500.0,0.00015342,2]
[334884840,1723626665102,-500.0,0.00015342,2]
[334884841,1723626665111,-568.25340971,0.00015342,2]
[334884842,1723626665120,-500.0,0.00015342,2]
[334884843,1723626665130,-830.91,0.00015342,2]
[334884844,1723626665139,-500.0,0.00015342,2]
[334884845,1723626665149,-500.0,0.00015342,2]
[334884846,1723626665158,-645.36726618,0.00015342,2]
[334884847,1723626665168,-500.0,0.00015342,2]
[334884848,1723626665178,-690.05,0.00015342,2]
[334884850,1723626665189,-500.0,0.00015342,2]
[334884852,1723626665199,-500.0,0.00015342,2]
[334884854,1723626665208,-500.0,0.00015342,2]
[334884856,1723626665218,-818.44,0.00015342,2]
[334884858,1723626665228,-500.0,0.00015342,2]
[334884860,1723626665237,-500.0,0.00015342,2]
[334884862,1723626665247,-500.0,0.00015342,2]
[334884864,1723626665256,-500.0,0.00015342,2]
[334884866,1723626665265,-500.0,0.00015342,2]
[334884868,1723626665274,-500.0,0.00015342,2]
[334884869,1723626665284,-500.0,0.00015342,2]
[334884872,1723626665294,-542.84,0.00015342,2]
[334884873,1723626665303,-500.0,0.00015342,2]
[334884875,1723626665312,-500.0,0.00015342,2]
[334884877,1723626665321,-500.0,0.00015342,2]
[334884879,1723626665330,-500.0,0.00015342,2]
[334884881,1723626665339,-609.17,0.00015342,2]
[334884883,1723626665348,-500.0,0.00015342,2]
[334884885,1723626665359,-579.6,0.00015342,2]
[334884887,1723626665368,-500.0,0.00015342,2]
[334884889,1723626665377,-500.0,0.00015342,2]
[334884891,1723626665386,-653.02,0.00015342,2]
[334884893,1723626665396,-500.0,0.00015342,2]
[334884895,1723626665404,-500.0,0.00015342,2]
[334884897,1723626665414,-500.0,0.00015342,2]
[334884899,1723626665426,-2177.45,0.00015342,2]
[334884901,1723626665436,-1063.82,0.00015342,2]
[334884903,1723626665445,-500.0,0.00015342,2]
[334884904,1723626665454,-500.0,0.00015342,2]
[334884906,1723626665463,-845.57,0.00015342,2]
[334884908,1723626665472,-1527.58,0.00015342,2]
[334884910,1723626665482,-676.31,0.00015342,2]
[334884912,1723626665493,-500.0,0.00015342,2]
[334884914,1723626665502,-1715.7,0.00015342,2]
[334884916,1723626665511,-500.0,0.00015342,2]
[334884918,1723626665520,-754.95,0.00015342,2]
[334884920,1723626665530,-500.0,0.00015342,2]
[334884922,1723626665539,-972.03,0.00015342,2]
[334884924,1723626665549,-500.0,0.00015342,2]
[334884925,1723626665558,-524.53,0.00015342,2]
[334884927,1723626665567,-500.0,0.00015342,2]
[334884929,1723626665577,-500.0,0.00015342,2]
[334884931,1723626665586,-500.0,0.00015342,2]
[334884933,1723626665596,-770.2,0.00015342,2]
[334884935,1723626665605,-500.0,0.00015342,2]
[334884937,1723626665615,-2373.49,0.00015342,2]
[334884939,1723626665624,-608.38,0.00015342,2]
[334884941,1723626665634,-562.69,0.00015342,2]
[334884943,1723626665644,-644.93,0.00015342,2]
[334884945,1723626665654,-6691.92,0.00015342,2]
[334884947,1723626665663,-2731.88,0.00015342,2]
[334884949,1723626665673,-2589.64,0.00015342,2]
[334884951,1723626665684,-255.33863117,0.00015342,2]
[334884953,1723626665694,-500.0,0.00015342,2]
[334884955,1723626665704,-552.38,0.00015342,2]
[334884957,1723626665713,-2632.4,0.00015342,2]
[334884959,1723626665723,-1402.43,0.00015342,2]
[334884961,1723626665732,-2123.25,0.00015342,2]
[334884963,1723626665741,-670.79,0.00015342,2]
[334884965,1723626665751,-759.51,0.00015342,2]
[334884967,1723626665760,-985.93,0.00015342,2]
[334884969,1723626665769,-500.0,0.00015342,2]
[334884971,1723626665779,-500.0,0.00015342,2]
[334884973,1723626665788,-3137.69,0.00015342,2]
[334884975,1723626665798,-343.51270546,0.00015342,2]
[334884977,1723626665807,-1305.48,0.00015342,2]
[334884979,1723626665816,-500.0,0.00015342,2]
[334884981,1723626665826,-644.37,0.00015342,2]
[334884983,1723626665835,-1305.6,0.00015342,2]
[334884985,1723626665845,-500.0,0.00015342,2]
[334884987,1723626665854,-500.0,0.00015342,2]
[334884989,1723626665864,-536.79,0.00015342,2]
[334884991,1723626665873,-983.66,0.00015342,2]
[334884993,1723626665883,-500.0,0.00015342,2]
[334884994,1723626665892,-500.0,0.00015342,2]
[334884996,1723626665902,-677.53,0.00015342,2]
[334884998,1723626665910,-2121.13,0.00015342,2]
[334885000,1723626665920,-638.37,0.00015342,2]
[334885002,1723626665929,-759.39,0.00015342,2]
[334885004,1723626665939,-500.0,0.00015342,2]
[334885006,1723626665949,-500.0,0.00015342,2]
[334885008,1723626665958,-500.0,0.00015342,2]
[334885010,1723626665968,-151.0,0.00015342,2]
[334885012,1723626665977,-500.0,0.00015342,2]
[334885014,1723626665986,-500.0,0.00015342,2]
[334885016,1723626665995,-500.0,0.00015342,2]
[334885018,1723626666004,-794.59,0.00015342,2]
[334885020,1723626666014,-500.0,0.00015342,2]
[334885022,1723626666023,-1352.79,0.00015342,2]
[334885024,1723626666033,-849.35,0.00015342,2]
[334885026,1723626666043,-500.0,0.00015342,2]
[334885028,1723626666052,-655.62,0.00015342,2]
[334885030,1723626666062,-500.0,0.00015342,2]
[334885032,1723626666071,-500.0,0.00015342,2]
[334885034,1723626666080,-1159.21,0.00015342,2]
[334885036,1723626666089,-500.0,0.00015342,2]
[334885038,1723626666099,-500.0,0.00015342,2]
[334885040,1723626666108,-733.33,0.00015342,2]
[334885042,1723626666115,-500.0,0.00015342,2]
[334885044,1723626666125,-500.0,0.00015342,2]
[334885045,1723626666135,-500.0,0.00015342,2]
[334885047,1723626666144,-562.63,0.00015342,2]
[334885049,1723626666153,-1460.87,0.00015342,2]
[334885051,1723626666162,-996.55,0.00015342,2]
[334885053,1723626666172,-395.30406735,0.00015342,2]
[334885055,1723626666181,-500.0,0.00015342,2]
[334885057,1723626666191,-1258.81,0.00015342,2]
[334885059,1723626666201,-500.0,0.00015342,2]
[334885061,1723626666211,-500.0,0.00015342,2]
[334885062,1723626666220,-682.77,0.00015342,2]
[334885064,1723626666230,-725.26,0.00015342,2]
[334885066,1723626666239,-604.11,0.00015342,2]
[334885068,1723626666249,-796.91,0.00015342,2]
[334885070,1723626666258,-678.33,0.00015342,2]
[334885072,1723626666267,-500.0,0.00015342,2]
[334885074,1723626666276,-500.0,0.00015342,2]
[334885076,1723626666285,-500.0,0.00015342,2]
[334885078,1723626666294,-500.0,0.00015342,2]
[334885079,1723626666304,-1036.99,0.00015342,2]
[334885081,1723626666313,-684.51,0.00015342,2]
[334885083,1723626666323,-2400.86,0.00015342,2]
[334885085,1723626666333,-1157.66,0.00015342,2]
[334885087,1723626666343,-2787.1,0.00015342,2]
[334885089,1723626666353,-589.58807544,0.00015342,2]
[334885091,1723626666363,-1126.69,0.00015342,2]
[334885093,1723626666373,-500.0,0.00015342,2]
[334885095,1723626666383,-500.0,0.00015342,2]
[334885097,1723626666392,-1607.6,0.00015342,2]
[334885099,1723626666402,-500.0,0.00015342,2]
[334885101,1723626666411,-500.0,0.00015342,2]
[334885103,1723626666425,-500.0,0.00015342,2]
[334885105,1723626666437,-544.62,0.00015342,2]
[334885107,1723626666446,-780.32,0.00015342,2]
[334885109,1723626666456,-500.0,0.00015342,2]
[334885111,1723626666466,-507.47,0.00015342,2]
[334885113,1723626666476,-3758.29,0.00015342,2]
[334885115,1723626666485,-1854.98,0.00015342,2]